Cogmind - Beta 11 X8 @@@ ROGUE MODE // 2021.10.30 @ 21:54:42 Player: Runia Result: Escaped! Performance ------------- Evolutions (9) 4500 Regions Visited (29) 5800 Robots Destroyed (395) 1975 Value Destroyed (19445) 19445 Prototype IDs (82) 1640 Alien Tech Used (3) 600 Bonus (15224) 15224 TOTAL SCORE: 49184 Bonus ------- Triggered High Security 500 High Alert Combat Kills 5658 Follower Combat Kills 730 Aligned with FarCom 300 Met Data Miner 300 Destroyed Z-Imprinter 1000 Met Zhirov 300 Met Warlord at Base 500 MAIN.C Attacked Warlord 500 Warlord Defense Kill 3430 Win 3000 Friendly Fire -994 Cogmind --------- Core Integrity 1198/1600 Matter 255/300 Energy 340/350 System Corruption 13% Temperature Cool (6) Movement Treading (170) Location To Epsilon Eridani Parts ------- > --- POWER (3) -------- Reinforced Quantum Reactor > --- PROPULSION (8) --- Armored Medium Treads Armored Heavy Treads > --- UTILITY (11) ----- Surveybot 24 Chip Experimental Targeting Computer Advanced Target Analyzer Experimental Armor Integrity Analyzer Advanced Transmission Jammer Layered Heavy Armor Plating > --- WEAPON (4) ------- Enhanced Nova Cannon > --- INVENTORY (5) ---- Surveybot 24 Scanner Mobile Refinery Mk. CCLXVII CR-A16's Behemoth Slayer Peak State ------------ > --- POWER ------------ Heavy Antimatter Reactor Quantum Reactor Quantum Reactor > --- PROPULSION ------- Armored Medium Treads Armored Medium Treads Improved Heavy Treads Advanced Heavy Siege Treads > --- UTILITY ---------- Advanced Cooling System High-capacity Storage Unit Enhanced Optical Array Surveybot 24 Chip Experimental Armor Integrity Analyzer Makeshift Transmission Jammer Layered Heavy Armor Plating Advanced Focal Shield Force Field Antimissile System > --- WEAPON ----------- Advanced Plasma Rifle Precision Phase Gun Precision Phase Gun Helical Railgun > --- INVENTORY -------- Advanced Coolant Injector Makeshift Trap Scanner Surveybot 24 Scanner Hardened Medium Armor Plating Long-range Tractor Beam Mobile Refinery Mk. CCLXVII Transdimensional Reconstructor Enhanced Force Rifle XL Autogun Array Gamma Bomb Array Long-range Missile Launcher RU-N14's Throwing Claymores v3 RU-N14's Throwing Claymores v3 RU-N14's Throwing Claymores v3 RU-N14's Throwing Claymores v3 RU-N14's Throwing Claymores v3 CR-A16's Behemoth Slayer [Rating: 186] Favorites ----------- Power Fission Core Engine Improved Deuterium Engine Power Core Fission Core Reactor Antimatter Reactor Propulsion Armored Treads Treads Armored Treads Leg Improved Aluminum Leg Wheel Centrium Wheel Hover Unit Cooled Gravmag System Utility Advanced Targeting Computer Device Makeshift Transmission Jammer Storage High-capacity Storage Unit Processor Advanced Targeting Computer Hackware System Shield Protection Improved Heavy Armor Plating Weapon Flak Gun Energy Gun Phase Gun Energy Cannon Neutron Cannon Ballistic Gun Flak Gun Launcher Heavy Rocket Launcher Special Weapon RU-N14's Throwing Claymores Piercing Weapon CR-A16's Behemoth Slayer Build | -11 -10 -10 -10 -9 -8 -7 -7 -7 -7 -7 -6 -6 -6 -6 -6 -5 -5 -5 -5 -5 -4 -4 -4 -4 -4 -3 -3 -2 -1 ------- Run | Scr Mat Min Exi Min Mat Fac Low Low Zio Dee Pro Fac Low Low Dat Pro Fac Upp Upp Zhi Pro Fac Upp Upp War Pro Res Res Acc Slots Evolved 18 | . . . . . 4 2 . . . . . 2 . . . . 2 . . . . 2 . . . . 2 2 2 Power 2 | . . . . . . . . . . . . . . . . . 1 . . . . . . . . . . 1 . Propulsion 6 | . . . . . 1 1 . . . . . . . . . . . . . . . 1 . . . . 1 . 2 Utility 8 | . . . . . 2 1 . . . . . 2 . . . . 1 . . . . . . . . . 1 1 . Weapon 2 | . . . . . 1 . . . . . . . . . . . . . . . . 1 . . . . . . . Parts Attached 705 | . 14 1 2 8 49 28 10 6 17 14 12 39 23 25 . 18 17 19 17 10 18 69 40 15 27 8 101 53 45 Power 25 | . 2 1 . . 2 1 . . 1 2 . . . . . 2 1 . . . . 3 . . 1 . . 4 5 Engine 5 | . 2 . . . 2 1 . . . . . . . . . . . . . . . . . . . . . . . Core 7 | . . 1 . . . . . . 1 1 . . . . . 1 . . . . . 3 . . . . . . . Reactor 13 | . . . . . . . . . . 1 . . . . . 1 1 . . . . . . . 1 . . 4 5 Propulsion 64 | . 6 . . 1 12 6 . 1 2 . . 1 . . . 1 1 . . 3 . 10 . . 1 . 5 8 6 Treads 48 | . 2 . . . 9 5 . 1 2 . . 1 . . . 1 1 . . 2 . 10 . . 1 . 5 3 5 Leg 9 | . 4 . . 1 3 . . . . . . . . . . . . . . . . . . . . . . . 1 Wheel 6 | . . . . . . 1 . . . . . . . . . . . . . . . . . . . . . 5 . Hover 1 | . . . . . . . . . . . . . . . . . . . . 1 . . . . . . . . . Flight . | . . . . . . . . . . . . . . . . . . . . . . . . . . . . . . Utility 366 | . 2 . . 1 10 14 4 . 5 5 11 26 18 16 . 12 9 14 13 3 13 32 33 15 14 8 60 15 13 Device 303 | . 1 . . . 2 8 4 . 4 1 5 17 17 16 . 12 8 14 13 2 13 29 32 15 11 4 55 12 8 Storage 5 | . 1 . . . 2 1 . . . . . . . . . . . . . . . . . . . . 1 . . Processor 13 | . . . . . 2 1 . . . 1 . . 1 . . . . . . . . 1 1 . 1 . 1 2 2 Hackware 1 | . . . . . . . . . . . . . . . . . . . . . . . . . . . . . 1 Protection 44 | . . . . 1 4 4 . . 1 3 6 9 . . . . 1 . . 1 . 2 . . 2 4 3 1 2 Artifact . | . . . . . . . . . . . . . . . . . . . . . . . . . . . . . . Weapon 250 | . 4 . 2 6 25 7 6 5 9 7 1 12 5 9 . 3 6 5 4 4 5 24 7 . 11 . 36 26 21 Energy Gun 36 | . 3 . . 2 5 . . . . 1 . . . . . . . . . . . 2 2 . 2 . 9 5 5 Energy Cannon 27 | . . . . . . 1 . 2 1 . . 2 1 1 . 1 . . . . . 5 4 . 2 . 2 . 5 Ballistic Gun 85 | . . . 2 2 11 5 3 2 6 2 1 4 2 5 . 1 2 3 2 2 2 5 1 . 1 . 7 9 5 Ballistic Cannon . | . . . . . . . . . . . . . . . . . . . . . . . . . . . . . . Launcher 42 | . 1 . . 2 9 1 2 1 1 2 . 2 1 1 . 1 2 1 1 . 3 . . . 1 . 5 2 3 Special Weapon 21 | . . . . . . . . . . 1 . . . . . . . . 1 . . 5 . . 3 . 3 8 . Impact Weapon . | . . . . . . . . . . . . . . . . . . . . . . . . . . . . . . Slashing Weapon . | . . . . . . . . . . . . . . . . . . . . . . . . . . . . . . Piercing Weapon 39 | . . . . . . . 1 . 1 1 . 4 1 2 . . 2 1 . 2 . 7 . . 2 . 10 2 3 Special Melee Weapon . | . . . . . . . . . . . . . . . . . . . . . . . . . . . . . . Unidentified Prototypes 35 | . . . . . 4 1 . . 1 5 . . 1 . . . . . . 3 . 2 . . 8 . 5 5 . Corrupted Parts 2 | . . . . . 1 . . . . . . . . . . . . . . . . . . . . . . . 1 System Corruption 12 | . . . . . 3 . . . . . . . . . . . . . . . . . . . . . . . 9 Parts Lost 51 | . 4 . . . 1 . . . . . . . . . . . . . . . 1 2 1 . . . 3 20 19 Power 8 | . 1 . . . . . . . . . . . . . . . . . . . . . . . . . . 4 3 Propulsion 15 | . 2 . . . . . . . . . . . . . . . . . . . . 1 . . . . 1 4 7 Utility 15 | . . . . . 1 . . . . . . . . . . . . . . . . 1 . . . . 2 7 4 Weapon 13 | . 1 . . . . . . . . . . . . . . . . . . . 1 . 1 . . . . 5 5 Highest Loss Streak 12 | . 2 . . . 1 . . . . . . . . . . . . . . . 1 1 1 . . . 1 12 5 Average Slot Usage (%) 93 | . 97 100 100 100 97 94 100 99 97 99 100 97 93 93 93 93 93 94 94 93 94 90 94 95 93 90 87 79 62 Engine 2 | . 13 10 . . 8 7 7 7 1 . . . . . . . . . . . . . . . . . . . . Core 3 | . . 3 14 14 . . . . 5 7 7 6 6 6 6 6 5 5 5 5 5 4 5 5 3 . . . . Reactor 2 | . . . . . . . . . . . . . . . . . 5 5 5 5 5 5 5 5 5 5 4 9 4 Treads 21 | . 15 . . . 16 20 30 30 30 30 30 26 25 25 25 25 22 22 22 21 22 21 25 25 25 25 22 15 8 Leg 3 | . 11 28 28 28 9 . . . . . . . . . . . . . . . . . . . . . . . . Device 9 | . 12 14 14 . 7 7 7 7 7 1 1 11 14 12 12 12 11 11 11 10 11 11 10 10 11 5 13 14 5 Storage 7 | . 14 14 14 14 11 7 7 7 7 7 7 6 6 6 6 6 5 5 5 5 5 5 5 5 5 5 4 3 . Processor 13 | . . . . . 8 14 15 15 15 15 15 13 14 18 18 18 16 16 16 16 16 15 20 20 17 20 18 15 14 Protection 6 | . . . . 13 6 6 7 7 7 12 13 12 6 6 6 6 10 11 11 11 11 8 5 5 5 9 6 3 . Energy Gun 4 | . 19 28 21 11 4 . . . . . . . . . . . . . . . . 2 5 10 5 5 5 11 3 Energy Cannon 1 | . . . . . . . . 6 . . . . 1 . . 1 . . . . . 4 5 5 4 5 4 . 1 Ballistic Gun 13 | . 8 . 6 16 21 22 22 14 20 17 23 18 15 16 18 15 13 12 15 14 15 9 9 5 4 5 4 1 3 Naked Turns . | . . . . . . . . . . . . . . . . . . . . . . . . . . . . . . Heaviest Build 163 | 11 29 29 29 40 51 69 73 73 73 81 75 86 88 86 83 89 104 104 105 101 103 131 131 124 135 133 147 163 106 Greatest Support 209 | 20 40 26 26 28 60 86 86 92 98 90 90 98 98 98 98 106 106 106 106 108 108 160 142 142 142 142 186 209 87 Greatest Overweight (x) 3 | . 1 1 1 1 3 2 . . . . . . . . . . . . . 1 . 1 . . 1 . . 1 1 Average Overweight (x) . | . . 1 1 1 . . . . . . . . . . . . . . . . . . . . . . . . . Largest Inventory Capacity 20 | 8 15 15 15 15 15 20 20 20 20 20 20 20 20 20 20 20 20 20 20 20 20 20 20 20 20 20 20 20 5 Average Capacity 18 | 8 13 15 15 15 15 17 20 20 20 20 20 20 20 20 20 20 20 20 20 20 20 20 20 20 20 20 20 18 5 Most Carried 20 | 5 15 15 15 15 15 20 20 20 20 20 20 20 20 20 20 20 20 20 20 20 20 20 20 20 20 20 20 20 5 Average Carried 17 | 5 7 15 14 14 14 17 19 19 19 19 20 19 19 20 20 19 19 20 20 19 19 19 19 19 19 19 19 17 4 Final Capacity 20 | 8 15 15 15 15 15 20 20 20 20 20 20 20 20 20 20 20 20 20 20 20 20 20 20 20 20 20 20 5 5 Final Carried 20 | 4 15 15 15 15 15 20 20 19 20 20 20 20 20 20 20 20 20 20 20 20 19 20 20 20 19 20 20 5 3 Class Distribution -------------------- 22% | Mutant 20% | Skirmisher 14% | Scavenger-Mutant 8% | Scavenger-Skirmisher 6% | Scavenger-Tank 4% | Scavenger-Gunner 3% | Scavenger-Assassin 3% | Gunner 3% | Derelict-Mutant Dominant Class ---------------- Mutant | -10/Materials Mutant | -10/Mines Mutant | -10/Exiles Scavenger-Mutant | -9/Mines Skirmisher | -8/Materials Skirmisher | -7/Factory Skirmisher | -7/Lower Caves Mutant | -7/Lower Caves Skirmisher | -7/Zion Mutant | -7/Deep Caves Scavenger-Tank | -6/Proximity Caves Scavenger-Tank | -6/Factory Scavenger-Gunner | -6/Lower Caves Scavenger-Gunner | -6/Lower Caves Derelict-Gunner | -6/Data Miner Derelict-Mutant | -5/Proximity Caves Derelict-Skirmisher | -5/Factory Derelict-Mutant | -5/Upper Caves Derelict-Tank | -5/Upper Caves Derelict-Mutant | -5/Zhirov Scavenger-Tank | -4/Proximity Caves Scavenger-Tank | -4/Factory Scavenger-Mutant | -4/Upper Caves Scavenger-Mutant | -4/Upper Caves Scavenger-Assassin | -4/Warlord Scavenger-Mutant | -3/Proximity Caves Mutant | -3/Research Generator-Tank | -2/Research Scavenger-Mutant | -1/Access Resources | -11 -10 -10 -10 -9 -8 -7 -7 -7 -7 -7 -6 -6 -6 -6 -6 -5 -5 -5 -5 -5 -4 -4 -4 -4 -4 -3 -3 -2 -1 ----------- Run | Scr Mat Min Exi Min Mat Fac Low Low Zio Dee Pro Fac Low Low Dat Pro Fac Upp Upp Zhi Pro Fac Upp Upp War Pro Res Res Acc Matter Collected 12417 | 187 423 17 10 215 1492 1207 225 81 247 155 141 689 273 302 . 369 155 338 256 130 181 1103 554 207 294 35 1494 902 735 Remotely 2246 | . . . . . . . . . . . . 387 273 302 . 369 61 166 125 130 181 . . . . . 252 . . Salvage Created 15279 | . 735 131 . 322 2195 1289 264 60 . 265 42 408 142 216 . 64 61 53 43 302 235 2070 324 99 373 . 2833 1324 1429 Parts 735 | . 39 6 . 9 118 86 10 6 . 13 4 29 8 8 . 2 2 5 7 7 12 105 11 6 5 . 106 53 78 Haulers Intercepted 12 | . 2 . . . 6 3 . . . . . . . . . . . . . . . . . . . . 1 . . Recyclers Shooed 8 | . . . . . 2 . . . . . . . . . . . 2 . . . . 3 . . . . 1 . . Parts Field Recycled . | . . . . . . . . . . . . . . . . . . . . . . . . . . . . . . Retrieved Matter . | . . . . . . . . . . . . . . . . . . . . . . . . . . . . . . Parts Self-Destructed 144 | . . . . . . . 3 10 6 . 11 . 8 8 . 14 . 4 7 6 6 . . 7 54 . . . . Prevented 29 | . . . . . . . 2 1 . . 3 . . . . 2 . . . . . . 11 . 10 . . . . Kills | -11 -10 -10 -10 -9 -8 -7 -7 -7 -7 -7 -6 -6 -6 -6 -6 -5 -5 -5 -5 -5 -4 -4 -4 -4 -4 -3 -3 -2 -1 ------- Run | Scr Mat Min Exi Min Mat Fac Low Low Zio Dee Pro Fac Low Low Dat Pro Fac Upp Upp Zhi Pro Fac Upp Upp War Pro Res Res Acc Combat Hostiles Destroyed 320 | . 13 2 . 9 41 17 5 3 . 8 2 12 3 5 . 1 1 5 8 . 8 38 4 2 24 . 45 49 15 Melee 4 | . . . . 1 . . . . . . . . . . . . . . . . . 3 . . . . . . . Guns 129 | . 11 2 . 4 24 15 2 1 . . 2 6 3 2 . 1 1 1 1 . 1 11 . 1 1 . 23 11 5 Cannons 24 | . . . . . . . . 1 . 1 . . . . . . . . . . . 7 2 1 1 . 3 7 1 AOE 147 | . 2 . . 3 17 2 3 1 . 7 . 6 . 3 . . . 4 7 . 7 17 . . 22 . 12 31 3 Classes Destroyed 28 | . 6 1 . 3 3 2 1 2 . 2 . . 1 . . . . . . . . 2 . . 3 . . 1 1 Worker 20 | . 1 . . . 6 . . . . . . 3 . . . . . . . . . 5 . . . . 3 . 2 Builder 8 | . . . . . . 1 . . . . . 1 . . . . . . . . . 4 . . . . 2 . . Tunneler 2 | . 1 . . . . 1 . . . . . . . . . . . . . . . . . . . . . . . Hauler 12 | . 2 . . . 6 3 . . . . . . . . . . . . . . . . . . . . 1 . . Recycler 10 | . . 1 . . 2 4 . . . . . . . . . . . . . . . 2 . . . . 1 . . Minesweeper 1 | . . . . . . . . . . . . . 1 . . . . . . . . . . . . . . . . Mechanic 1 | . . . . . . . . . . . . . . . . . . . . . . . . . 1 . . . . Operator 7 | . 3 . . . 2 2 . . . . . . . . . . . . . . . . . . . . . . . Watcher 10 | . 1 . . . 1 2 . . . . . 2 . . . . . . . . . 1 . . . . . 2 1 Swarmer 65 | . . . . 2 10 4 . . . . 2 5 . 1 . . . 5 8 . 4 . . . . . 10 14 . Saboteur 3 | . . . . . . . . . . . . . . . . . . . . . . 2 . . . . . . 1 Grunt 99 | . 13 2 . 5 17 3 3 . . . . 5 2 3 . . . . . . 4 6 2 . 10 . 15 6 3 Brawler 10 | . . . . 1 1 . . . . . . . . 1 . . . . . . . . . . 5 . 2 . . Duelist 5 | . . . . . . . 1 . . . . 1 . . . . . . . . . 1 . . 1 . 1 . . Protector 6 | . . . . . 1 . . . . . . . . . . . . . . . . 1 . . 3 . 1 . . Sentry 25 | . . . . 1 9 5 1 . . . . . . . . 1 1 . . . . 1 . . . . 2 4 . Demolisher 4 | . . . . . . . . . . . . . . . . . . . . . . . . . 1 . . 3 . Specialist 5 | . . . . . 2 . . . . . . . . . . . . . . . . 3 . . . . . . . Hunter 32 | . . . . . . . . 1 . . . . . . . . . . . . . 10 2 . . . 6 7 6 Programmer 33 | . . . . . . 5 . . . . . 1 1 . . . . . . . . 12 . 2 1 . 7 1 3 Heavy 4 | . . . . . 1 . . . . . . . . . . . . . . . . 1 . . . . 2 . . Behemoth 2 | . . . . . . . . . . . . . . . . . . . . . . . . . . . . . 2 Striker 11 | . . . . . . . . . . . . . . . . . . . . . . 1 . . 2 . . 8 . Executioner 7 | . . . . . . . . . . . . . . . . . . . . . . . . . 1 . . 6 . Z-Light 8 | . . . . . . . . . . 8 . . . . . . . . . . . . . . . . . . . Thief 2 | . . . . . . . . 2 . . . . . . . . . . . . . . . . . . . . . Thug 1 | . . . . 1 . . . . . . . . . . . . . . . . . . . . . . . . . Fireman 1 | . . . . . . . . . . 1 . . . . . . . . . . . . . . . . . . . Hydra 1 | . . . . . . . . . . . . . . . . . . . . . . . . . . . . 1 . Best Kill Streak 15 | . 4 1 . 3 6 4 4 2 . 6 2 6 3 4 . 1 1 5 5 . 4 14 2 1 15 . 7 15 4 Combat Bots Only 15 | . 3 1 . 3 5 4 4 2 . 6 2 4 2 4 . 1 1 5 5 . 4 13 2 1 14 . 6 15 3 Max Kills in Single Turn 5 | . 2 1 . 1 3 2 3 1 . 4 1 5 1 2 . 1 1 3 3 . 3 4 1 1 4 . 3 5 1 Gunslinging 1 | . 1 . . . . . . . . . . 1 . . . . . . . . . 1 . . . . . 1 . Exploded 5 | . 1 . . 1 3 2 3 1 . 4 . 4 . 2 . . . 3 3 . 3 4 . . 4 . 3 5 1 Melee 1 | . . . . 1 . . . . . . . . . . . . . . . . . 1 . . . . . . . Uniques/NPCs Destroyed 1 | . . . . . . . . . . 1 . . . . . . . . . . . . . . . . . . . Z-Imprinter (-7/Deep Caves) Combat | -11 -10 -10 -10 -9 -8 -7 -7 -7 -7 -7 -6 -6 -6 -6 -6 -5 -5 -5 -5 -5 -4 -4 -4 -4 -4 -3 -3 -2 -1 -------- Run | Scr Mat Min Exi Min Mat Fac Low Low Zio Dee Pro Fac Low Low Dat Pro Fac Upp Upp Zhi Pro Fac Upp Upp War Pro Res Res Acc Damage Taken 21531 | . 677 90 . 257 1618 777 137 289 . 251 88 493 124 130 . 251 225 140 90 . 319 1954 431 145 474 . 2706 5735 4130 Core 2018 | . 67 29 . 29 38 60 39 39 . . . 48 14 . . 64 . . . . . 85 57 . 13 . 114 920 402 Absorbed by Shields 2769 | . . . . . . . . . . . . . . . . . . . 26 . 46 895 49 . . . 1168 575 10 Reduced by Siege Mode 88 | . . . . . . . . . . . . . . . . . . . . . . . . . . . 39 49 . Core Remaining (%) 78 | 100 . . . 50 93 . . . . . 80 . . . . 85 . . . . 100 . . . . 86 91 29 74 Volleys Fired 829 | . 81 11 . 27 117 54 5 28 3 10 3 24 11 18 . 26 10 4 5 . 10 65 37 11 15 . 120 87 47 Largest 4 | . 2 2 . 2 3 3 3 2 1 1 3 3 3 3 . 3 3 3 3 . 3 4 1 4 2 . 4 4 3 Hottest 357 | . 90 90 . 98 187 78 81 69 90 . 79 90 84 84 . 89 89 89 89 . 89 238 90 302 118 . 345 357 241 Shots Fired 1680 | . 155 22 . 48 297 156 11 32 3 10 9 58 25 28 . 40 25 8 7 . 16 164 36 27 16 . 267 151 69 Gun 1305 | . 152 22 . 42 276 154 9 6 . . 9 49 21 15 . 26 24 6 3 . 9 112 . 16 3 . 209 104 38 Cannon 188 | . . . . . . . . 22 3 . . 3 4 10 . 14 . . . . . 34 36 11 . . 41 . 10 Launcher 97 | . 3 . . 6 21 2 2 4 . . . 6 . 3 . . 1 2 2 . 7 . . . . . 11 6 21 Special 90 | . . . . . . . . . . 10 . . . . . . . . 2 . . 18 . . 13 . 6 41 . Kinetic 875 | . 59 . . 27 212 154 9 6 . . 9 49 21 15 . 26 24 6 3 . 9 84 . 5 2 . 64 63 28 Thermal 558 | . 93 22 . 15 64 . . 20 3 . . 3 4 10 . 14 . . . . . 62 20 22 1 . 145 41 19 Explosive 151 | . 3 . . 6 13 2 . 4 . 10 . 6 . 3 . . 1 2 4 . 7 18 . . 13 . 12 47 . Electromagnetic 77 | . . . . . 8 . 2 2 . . . . . . . . . . . . . . 16 . . . 27 . 22 Entropic 19 | . . . . . . . . . . . . . . . . . . . . . . . . . . . 19 . . Robot Hit Streak 40 | . 15 6 . 11 27 40 14 6 . 2 3 5 9 12 . 8 9 6 4 . 3 17 4 10 13 . 23 30 15 Robot Miss Streak 7 | . 3 2 . 3 3 4 1 3 . 2 3 7 6 4 . 3 3 3 3 . 4 4 2 1 . . 3 4 3 Penetration Max 1 | . . . . . . . . . . . . 1 . . . . . . . . . 1 . . . . 1 1 1 Secondary Targets 13 | . 3 . . . 2 1 . . . . 1 3 . . . . . . . . . 1 . . . . 1 1 . Max Gunslinging Chain 1 | . 1 . . . 1 1 . . . . 1 1 . . . . . . . . . 1 . . . . 1 1 . Shots Hit Robots 1161 | . 107 14 . 36 206 111 10 10 . 7 5 42 20 17 . 18 19 6 5 6 8 136 11 14 12 . 198 97 46 Core Hits 887 | . 43 7 . 16 92 63 10 6 . 18 7 44 20 22 . 8 10 7 11 4 17 116 5 4 78 . 112 119 48 Critical Kills 14 | . . . . . . . . . . . . . . . . . . . . . . . . . . . 8 3 3 Critical Parts Destroyed 12 | . . . . . . 2 . . . . . . . . . . . . . . . . . . . . 6 2 2 Critical Strikes 78 | . 2 2 . 1 6 3 . . . 1 . . . . . . . . . 2 . 7 . . 6 . 26 16 6 Burn 20 | . 2 2 . 1 6 . . . . . . . . . . . . . . . . 2 . . . . 5 2 . Destroy 29 | . . . . . . 3 . . . . . . . . . . . . . . . 1 . . . . 15 5 5 Sever 23 | . . . . . . . . . . 1 . . . . . . . . . . . 4 . . 6 . 3 9 . Puncture 4 | . . . . . . . . . . . . . . . . . . . . 2 . . . . . . 1 . 1 Sunder 2 | . . . . . . . . . . . . . . . . . . . . . . . . . . . 2 . . Melee Attacks 102 | . . . . . . . 1 . 1 1 . 7 1 4 . . 7 1 . 6 . 32 . . 8 . 24 1 8 Impact . | . . . . . . . . . . . . . . . . . . . . . . . . . . . . . . Slashing . | . . . . . . . . . . . . . . . . . . . . . . . . . . . . . . Piercing 102 | . . . . . . . 1 . 1 1 . 7 1 4 . . 7 1 . 6 . 32 . . 8 . 24 1 8 Sneak Attacks 6 | . . . . . . . . . . . . . . . . . . . . . . 2 . . . . 4 . . Combat Hostiles . | . . . . . . . . . . . . . . . . . . . . . . . . . . . . . . Follow-up Attacks . | . . . . . . . . . . . . . . . . . . . . . . . . . . . . . . Damage Inflicted 63261 | . 1339 169 . 955 5241 2143 414 584 . 1883 102 1868 392 1025 . 360 408 563 861 519 901 8645 433 449 7355 . 9745 14723 2184 Guns 19973 | . 1175 169 . 513 3366 2036 171 70 . . 102 658 392 246 . 360 408 66 33 . 66 2275 . 320 73 . 4274 2366 834 Cannons 2998 | . . . . . . . . 58 . . . 26 . . . . . . . . . 783 433 129 . . 1436 . 133 Explosions 34877 | . 164 . . 437 1875 107 243 456 . 1500 . 1149 . 611 . . . 497 795 . 835 4183 . . 6870 . 3203 10789 1163 Melee 2205 | . . . . . . . . . . 96 . . . 168 . . . . . 519 . 835 . . . . 536 . 51 Ramming 46 | . . . . 5 . . . . . . . 35 . . . . . . . . . 3 . . . . . . 3 Kinetic 13221 | . 344 . . 241 2525 2036 171 70 . . 102 658 392 246 . 360 408 66 33 . 66 1707 . 89 47 . 1313 1697 650 Thermal 8080 | . 831 169 . 272 914 . 80 26 . . . 26 . . . . . . . . . 1351 . 360 26 . 2961 669 395 Explosive 32504 | . 164 . . 437 1210 107 . 456 . 1500 . 1149 . 611 . . . 497 795 . 835 4183 . . 6870 . 2901 10789 . Electromagnetic 3162 | . . . . . 592 . 163 32 . . . . . . . . . . . . . . 433 . . . 857 . 1085 Impact . | . . . . . . . . . . . . . . . . . . . . . . . . . . . . . . Slashing 3162 | . . . . . . . . . . 287 . . . . . . . . 33 . . 566 . . 412 . 296 1568 . Piercing 2205 | . . . . . . . . . . 96 . . . 168 . . . . . 519 . 835 . . . . 536 . 51 Entropic 881 | . . . . . . . . . . . . . . . . . . . . . . . . . . . 881 . . Highest Corruption 16 | . . . . . 7 5 5 5 5 . . 1 1 1 1 1 . . . . . 16 7 9 9 . 11 5 13 Average Corruption 5 | . . . . . 4 4 5 5 5 . . 1 1 1 1 1 . . . . . 9 7 8 9 . 6 3 8 Corruption Purged 10 | . . . . . . . . . . . . . . . . . . . . . . 10 . . . . . . . Effects 362 | . . . . . 71 33 28 15 3 . . 7 4 2 . 2 . . . . . 47 40 21 2 . 55 14 18 Message Errors 86 | . . . . . 15 8 4 4 1 . . 2 1 1 . . . . . . . 14 10 7 1 . 11 4 3 Matter Fused 94 | . . . . . 26 9 10 4 1 . . . . . . . . . . . . 7 15 3 1 . 9 5 4 Heat Flow Errors 36 | . . . . . 4 2 2 1 . . . . . . . . . . . . . 4 5 5 . . 8 1 4 Energy Discharges 51 | . . . . . 14 7 5 2 . . . 2 . 1 . 1 . . . . . 5 4 1 . . 4 2 3 Parts Rejected 3 | . . . . . . . . . . . . . . . . . . . . . . 2 . . . . 1 . . Data Loss (minor) 53 | . . . . . 8 2 6 2 1 . . 3 3 . . 1 . . . . . 6 4 4 . . 9 1 3 Data Loss (major) 12 | . . . . . . 1 1 1 . . . . . . . . . . . . . 1 1 . . . 5 1 1 Misfires 12 | . . . . . 1 2 . 1 . . . . . . . . . . . . . 4 . 1 . . 3 . . Alerts 1 | . . . . . . . . . . . . . . . . . . . . . . 1 . . . . . . . Weapon Failures 14 | . . . . . 3 2 . . . . . . . . . . . . . . . 3 1 . . . 5 . . Overload Shots 4 | . . . . . . . . . 3 . . 1 . . . . . . . . . . . . . . . . . Overflow Damage 1607 | . . . . 32 62 . . 32 . 148 . 30 . . . . . 75 25 . . 152 . 33 14 . 623 381 . Projectiles 417 | . . . . . . . . 24 . . . . . . . . . . . . . 6 . 33 . . 299 55 . Explosions 787 | . . . . 32 62 . . 8 . 67 . 20 . . . . . 75 25 . . 23 . . 14 . 135 326 . Melee 403 | . . . . . . . . . . 81 . 10 . . . . . . . . . 123 . . . . 189 . . Knockbacks . | . . . . . . . . . . . . . . . . . . . . . . . . . . . . . . Impact . | . . . . . . . . . . . . . . . . . . . . . . . . . . . . . . Kinetic . | . . . . . . . . . . . . . . . . . . . . . . . . . . . . . . Secondary . | . . . . . . . . . . . . . . . . . . . . . . . . . . . . . . Self-Inflicted Damage 431 | . . . . 25 . . . 204 . . . 45 . . . . . 23 . . 27 . . . . . 32 . 75 Shots 22 | . . . . 1 . . . 4 . . . 1 . . . . . 2 . . 1 . . . . . 4 . 9 Rammed 2 | . . . . . . . . . . . . 1 . . . . . . . . . . . . . . . . 1 Targets Rammed 4 | . . . . 1 . . . . . . . 1 . . . . . . . . . 1 . . . . . . 1 Kicked 1 | . . . . 1 . . . . . . . . . . . . . . . . . . . . . . . . . Crushed 1 | . . . . . . . . . . . . . . . . . . . . . . 1 . . . . . . . Highest Temperature 490 | . 154 7 . 291 318 271 267 123 42 . 18 226 42 36 . 111 165 66 33 . 20 286 302 419 . . 354 490 201 Average Temperature 74 | . 21 3 . 115 104 48 92 46 26 . 9 61 16 14 . 50 65 25 10 . 10 42 79 126 . . 79 155 35 Received Heat Transfer 2175 | . 384 57 . 93 414 138 72 . . 57 6 84 45 36 . 72 27 . . . 57 104 21 . 18 . 253 93 144 Effects 16 | . . . . 3 . 1 3 . . . . . . . . . . . . . . 3 . 3 . . . 3 . Shutdowns 2 | . . . . . . . . . . . . . . . . . . . . . . . . 1 . . . 1 . Energy Bleed 2 | . . . . 1 . . . . . . . . . . . . . . . . . . . . . . . 1 . Interference 10 | . . . . 2 . 1 3 . . . . . . . . . . . . . . 3 . . . . . 1 . Damage (major) 2 | . . . . . . . . . . . . . . . . . . . . . . . . 2 . . . . . Siege Activations 7 | . . . . . . . . . . . . . . . . . . . . . . . . . . . 4 3 . Total Turns 95 | . . . . . . . . . . . . . . . . . . . . . . . . . . . 45 50 . Longest Duration 26 | . . . . . . . . . . . . . . . . . . . . . . . . . . . 26 19 . Robots Corrupted 10 | . . . . . . . . . . . . . . . . . . . . . . . 2 . . . 4 . 4 Combat Hostiles 10 | . . . . . . . . . . . . . . . . . . . . . . . 2 . . . 4 . 4 Parts Fried 19 | . . . . . 2 . 1 . . . . . . . . . . . . . . . 4 . . . 5 . 7 Impact Corruptions 1 | . . . . . . . . . . . . 1 . . . . . . . . . . . . . . . . . Robots Melted 4 | . . . . 1 . . . . . . . . . . . . . . . . . . . . . . 3 . . Combat Hostiles 4 | . . . . 1 . . . . . . . . . . . . . . . . . . . . . . 3 . . Parts Melted 66 | . 7 2 . 4 11 . . . . . . . . . . . . . . . . 2 . 1 . . 33 5 1 Heat Transferred 14132 | . 2410 570 . 518 2209 . 100 37 . . . 37 . . . . . . . . . 1388 . 334 37 . 4969 1127 396 Parts Sabotaged . | . . . . . . . . . . . . . . . . . . . . . . . . . . . . . . Parts Stolen 1 | . . . . . . . . 1 . . . . . . . . . . . . . . . . . . . . . Parts Stripped . | . . . . . . . . . . . . . . . . . . . . . . . . . . . . . . Power Chain Reactions 6 | . . . . . 2 . 2 . . . . . . . . . . . . . . . . . . . . . 2 Missiles Intercepted 14 | . . . . . . . . . . . . . . . . . . . . . . . . . . . . 14 . Alert | -11 -10 -10 -10 -9 -8 -7 -7 -7 -7 -7 -6 -6 -6 -6 -6 -5 -5 -5 -5 -5 -4 -4 -4 -4 -4 -3 -3 -2 -1 ------- Run | Scr Mat Min Exi Min Mat Fac Low Low Zio Dee Pro Fac Low Low Dat Pro Fac Upp Upp Zhi Pro Fac Upp Upp War Pro Res Res Acc Peak Influence 2174 | . 151 159 . 215 779 494 . . . . . 508 . . . . 120 . . . . 936 . . . . 1200 2174 1604 Initial 1304 | . . 48 . . . 338 . . . . . . . . . . . . . . . . . . . . . 648 1304 Average 433 | . 80 113 . 115 366 386 . . . . . 337 . . . . 53 . . . . 394 . . . . 442 1016 1429 Maximum Alert Level 5 | . . . . 1 3 2 . . . . . 2 . . . . . . . . . 3 . . . . 4 5 5 Low Security (%) 34 | 100 100 100 . 80 14 . . . . . . 16 . . . . 100 . . . . 40 . . . . 43 . . Level 1 25 | . . . . 19 51 60 . . . . . 45 . . . . . . . . . 12 . . . . 6 . . Level 2 20 | . . . . . 16 39 . . . . . 37 . . . . . . . . . 18 . . . . 16 52 . Level 3 10 | . . . . . 17 . . . . . . . . . . . . . . . . 27 . . . . 22 17 . Level 4 7 | . . . . . . . . . . . . . . . . . . . . . . . . . . . 10 11 99 Level 5 . | . . . . . . . . . . . . . . . . . . . . . . . . . . . . 5 . High Security 1 | . . . . . . . . . . . . . . . . . . . . . . . . . . . . 13 . Max Security . | . . . . . . . . . . . . . . . . . . . . . . . . . . . . . . Squads Dispatched 49 | . 5 . . . 6 6 . . . . . 4 . . . . 1 . . . . 9 . . . . 14 . 4 Investigation 7 | . 2 . . . . 1 . . . . . 1 . . . . 1 . . . . . . . . . 1 . 1 Extermination 15 | . . . . . . 4 . . . . . 1 . . . . . . . . . 5 . . . . 4 . 1 Reinforcement 17 | . 3 . . . 5 1 . . . . . 1 . . . . . . . . . 2 . . . . 5 . . Assault 10 | . . . . . 1 . . . . . . 1 . . . . . . . . . 2 . . . . 4 . 2 Garrison . | . . . . . . . . . . . . . . . . . . . . . . . . . . . . . . Intercept . | . . . . . . . . . . . . . . . . . . . . . . . . . . . . . . Construction Impeded 2 | . . . . . . . . . . . . . . . . . . . . . . 1 . . . . 1 . . Haulers Reinforced 1 | . . . . . . . . . . . . . . . . . . . . . . . . . . . 1 . . Active Scanning Responses . | . . . . . . . . . . . . . . . . . . . . . . . . . . . . . . Cargo Convoy Interrupts 1 | . . . . . . . . . . . . . . . . . . . . . . 1 . . . . . . . Stealth | -11 -10 -10 -10 -9 -8 -7 -7 -7 -7 -7 -6 -6 -6 -6 -6 -5 -5 -5 -5 -5 -4 -4 -4 -4 -4 -3 -3 -2 -1 --------- Run | Scr Mat Min Exi Min Mat Fac Low Low Zio Dee Pro Fac Low Low Dat Pro Fac Upp Upp Zhi Pro Fac Upp Upp War Pro Res Res Acc Distress Signals 13 | . . . . . 2 2 . . . . . . . . . . . . . . . 1 . . . . 1 5 2 Communications Jammed 94 | . . . . . . . . . . . . . . . . . . . . . . 50 . . 6 . 28 10 . Distress Signals 86 | . . . . . . . . . . . . . . . . . . . . . . 47 . . 6 . 23 10 . Times Spotted 487 | . 26 3 . 13 68 26 5 4 . 12 3 26 3 5 . 4 3 5 9 . 8 53 4 2 32 . 59 81 33 Peak Tracking Total 16 | . 3 2 . 3 6 4 3 3 . 6 3 8 1 4 . 3 2 5 5 . 4 15 2 1 16 . 5 16 5 Tactical Retreats 27 | . 2 . . 4 6 . . . . . . . . . . 2 . . . . . 1 . . . . 4 5 3 Traps | -11 -10 -10 -10 -9 -8 -7 -7 -7 -7 -7 -6 -6 -6 -6 -6 -5 -5 -5 -5 -5 -4 -4 -4 -4 -4 -3 -3 -2 -1 ------- Run | Scr Mat Min Exi Min Mat Fac Low Low Zio Dee Pro Fac Low Low Dat Pro Fac Upp Upp Zhi Pro Fac Upp Upp War Pro Res Res Acc Traps Triggered 8 | . . . . . 2 5 . . . . . . . . . . 1 . . . . . . . . . . . . Indirectly . | . . . . . . . . . . . . . . . . . . . . . . . . . . . . . . Trap Hack Attempts . | . . . . . . . . . . . . . . . . . . . . . . . . . . . . . . Triggered . | . . . . . . . . . . . . . . . . . . . . . . . . . . . . . . Disarmed . | . . . . . . . . . . . . . . . . . . . . . . . . . . . . . . Reprogrammed . | . . . . . . . . . . . . . . . . . . . . . . . . . . . . . . Reused . | . . . . . . . . . . . . . . . . . . . . . . . . . . . . . . Traps Extracted . | . . . . . . . . . . . . . . . . . . . . . . . . . . . . . . Installed . | . . . . . . . . . . . . . . . . . . . . . . . . . . . . . . Triggered 11 | . . . . . . . . 1 . . . . . . . 1 . . . . . . 2 . 7 . . . . Machines | -11 -10 -10 -10 -9 -8 -7 -7 -7 -7 -7 -6 -6 -6 -6 -6 -5 -5 -5 -5 -5 -4 -4 -4 -4 -4 -3 -3 -2 -1 ---------- Run | Scr Mat Min Exi Min Mat Fac Low Low Zio Dee Pro Fac Low Low Dat Pro Fac Upp Upp Zhi Pro Fac Upp Upp War Pro Res Res Acc Machines Disabled 29 | . . . . 2 1 . 1 1 2 1 . 6 . . . . 1 . . . . 4 . . . . 6 2 2 Max in Single Turn 2 | . . . . 1 1 . 1 1 1 . . 2 . . . . 1 . . . . 1 . . . . 1 1 1 Garrison Access 3 | . . . . . 1 . . . . . . 1 . . . . . . . . . . . . . . . 1 . Machines Sabotaged . | . . . . . . . . . . . . . . . . . . . . . . . . . . . . . . Garrisons Compromised . | . . . . . . . . . . . . . . . . . . . . . . . . . . . . . . Overloaded Fab Kills . | . . . . . . . . . . . . . . . . . . . . . . . . . . . . . . Hacking | -11 -10 -10 -10 -9 -8 -7 -7 -7 -7 -7 -6 -6 -6 -6 -6 -5 -5 -5 -5 -5 -4 -4 -4 -4 -4 -3 -3 -2 -1 --------- Run | Scr Mat Min Exi Min Mat Fac Low Low Zio Dee Pro Fac Low Low Dat Pro Fac Upp Upp Zhi Pro Fac Upp Upp War Pro Res Res Acc Machines Accessed 75 | . 5 . 2 . 12 12 . 1 . . . 9 . 2 4 . 3 . . 4 . 6 2 . 3 . 7 1 2 Terminals 31 | . 3 . . . 8 7 . . . . . 3 . . . . 1 . . . . 3 . . . . 4 1 1 Fabricators 2 | . . . . . . 1 . . . . . . . . . . 1 . . . . . . . . . . . . Repair Stations 10 | . . . . . 1 2 . . . . . 4 . . . . . . . . . 1 . . . . 2 . . Recycling Units 8 | . 2 . . . 1 1 . . . . . 1 . . . . . . . . . 1 . . . . 1 . 1 Scanalyzers 2 | . . . . . 1 1 . . . . . . . . . . . . . . . . . . . . . . . Garrison Access 4 | . . . . . 1 . . . . . . 1 . . . . 1 . . . . 1 . . . . . . . Total Hacks 190 | . 11 . 2 . 28 32 . 1 . . . 18 . 2 27 . 7 . . 17 . 20 2 . 6 . 12 1 4 Successful 123 | . 8 . 2 . 18 19 . 1 . . . 6 . 2 27 . 2 . . 17 . 11 2 . 6 . 2 . . Failed 66 | . 3 . . . 9 13 . . . . . 12 . . . . 5 . . . . 9 . . . . 10 1 4 Catastrophic 14 | . . . . . . 1 . . . . . 3 . . . . 1 . . . . 1 . . . . 4 1 3 Database Lockouts 1 | . . . . . 1 . . . . . . . . . . . . . . . . . . . . . . . . Manual 53 | . 7 . 1 . 10 11 . . 1 . . 9 . . . . 2 . . . . 5 . . 1 . 5 1 . Terminals 78 | . 9 . . . 19 20 . . . . . 7 . . . . 3 . . . . 9 . . . . 7 1 3 Fabricators 5 | . . . . . . 3 . . . . . . . . . . 2 . . . . . . . . . . . . Repair Stations 19 | . . . . . 2 4 . . . . . 5 . . . . . . . . . 5 . . . . 3 . . Recycling Units 17 | . 2 . . . 4 1 . . . . . 3 . . . . . . . . . 4 . . . . 2 . 1 Scanalyzers 6 | . . . . . 2 4 . . . . . . . . . . . . . . . . . . . . . . . Garrison Access 8 | . . . . . 1 . . . . . . 3 . . . . 2 . . . . 2 . . . . . . . Terminal Hacks 88 | . 6 . 2 . 9 7 . 1 . . . 2 . 2 27 . 2 . . 17 . 5 2 . 6 . . . . Record 23 | . . . 1 . . . . . . . . . . . 11 . . . . 5 . . 1 . 5 . . . . Part Schematic 18 | . . . . . 1 3 . . . . . . . . 9 . . . . 4 . 1 . . . . . . . Robot Schematic 4 | . . . . . . . . . . . . . . . 4 . . . . . . . . . . . . . . Robot Analysis 8 | . 2 . . . 1 . . . . . . . . . . . . . . 4 . 1 . . . . . . . Prototype ID Bank 10 | . . . . . 1 . . . . . . . . . 3 . 1 . . 4 . 1 . . . . . . . Open Door 5 | . . . . . . . . 1 . . . . . 2 . . . . . . . . 1 . 1 . . . . Open DSF 1 | . . . . . . . . . . . . 1 . . . . . . . . . . . . . . . . . Level Access Points 1 | . . . . . . 1 . . . . . . . . . . . . . . . . . . . . . . . Branch Access Points 2 | . . . . . . 1 . . . . . 1 . . . . . . . . . . . . . . . . . Terminal Index 1 | . 1 . . . . . . . . . . . . . . . . . . . . . . . . . . . . Unreport Threat 4 | . . . . . 2 . . . . . . . . . . . . . . . . 2 . . . . . . . Locate Traps 2 | . 1 . . . . . . . . . . . . . . . 1 . . . . . . . . . . . . Hauler Manifests 2 | . . . . . 2 . . . . . . . . . . . . . . . . . . . . . . . . Registered Components 2 | . 1 . . . 1 . . . . . . . . . . . . . . . . . . . . . . . . Zone Layout 4 | . 1 . . . 1 2 . . . . . . . . . . . . . . . . . . . . . . . EX-Prototype ID Bank 1 | . . . 1 . . . . . . . . . . . . . . . . . . . . . . . . . . Fabricator Hacks 2 | . . . . . . 2 . . . . . . . . . . . . . . . . . . . . . . . Load Schematic 1 | . . . . . . 1 . . . . . . . . . . . . . . . . . . . . . . . Build 1 | . . . . . . 1 . . . . . . . . . . . . . . . . . . . . . . . Repair Station Hacks 11 | . . . . . 2 4 . . . . . 2 . . . . . . . . . 3 . . . . . . . Scan Component 6 | . . . . . 1 2 . . . . . 1 . . . . . . . . . 2 . . . . . . . Repair 5 | . . . . . 1 2 . . . . . 1 . . . . . . . . . 1 . . . . . . . Recycling Unit Hacks 3 | . . . . . 2 . . . . . . . . . . . . . . . . 1 . . . . . . . Report Inventory 1 | . . . . . 1 . . . . . . . . . . . . . . . . . . . . . . . . Retrieve Components 2 | . . . . . 1 . . . . . . . . . . . . . . . . 1 . . . . . . . Scanalyzer 5 | . . . . . 2 3 . . . . . . . . . . . . . . . . . . . . . . . Insert Component 3 | . . . . . 1 2 . . . . . . . . . . . . . . . . . . . . . . . Analyze 2 | . . . . . 1 1 . . . . . . . . . . . . . . . . . . . . . . . Garrison Access Hacks 1 | . . . . . 1 . . . . . . . . . . . . . . . . . . . . . . . . Seal Access 1 | . . . . . 1 . . . . . . . . . . . . . . . . . . . . . . . . Unauthorized Hacks 13 | . 2 . . . 2 3 . . . . . 2 . . . . . . . . . 2 . . . . 2 . . Terminals 4 | . . . . . . 2 . . . . . . . . . . . . . . . . . . . . 2 . . Assimilate 1 | . . . . . . 1 . . . . . . . . . . . . . . . . . . . . . . . Botnet 3 | . . . . . . 1 . . . . . . . . . . . . . . . . . . . . 2 . . Fabricators 1 | . . . . . . 1 . . . . . . . . . . . . . . . . . . . . . . . Haulers 1 | . . . . . . 1 . . . . . . . . . . . . . . . . . . . . . . . Repair Stations . | . . . . . . . . . . . . . . . . . . . . . . . . . . . . . . Recycling Units 7 | . 2 . . . 2 . . . . . . 1 . . . . . . . . . 2 . . . . . . . Recyclers 3 | . . . . . 1 . . . . . . 1 . . . . . . . . . 1 . . . . . . . Mask 2 | . . . . . 1 . . . . . . . . . . . . . . . . 1 . . . . . . . Tunnel 2 | . 2 . . . . . . . . . . . . . . . . . . . . . . . . . . . . Scanalyzers . | . . . . . . . . . . . . . . . . . . . . . . . . . . . . . . Garrison Access 1 | . . . . . . . . . . . . 1 . . . . . . . . . . . . . . . . . Jam 1 | . . . . . . . . . . . . 1 . . . . . . . . . . . . . . . . . Data Cores Recovered 1 | . . . . . . 1 . . . . . . . . . . . . . . . . . . . . . . . Used 1 | . . . . . . 1 . . . . . . . . . . . . . . . . . . . . . . . Hacking Detections 52 | . 3 . . . 9 12 . . . . . 9 . . . . 3 . . . . 6 . . . . 7 1 2 Full Trace Events 4 | . . . . . . 1 . . . . . . . . . . 1 . . . . . . . . . 1 . 1 Feedback Events 1 | . . . . . . . . . . . . . . . . . . . . . . . . . . . 1 . . Corruption 1 | . . . . . . . . . . . . . . . . . . . . . . . . . . . 1 . . Feedback Blocked . | . . . . . . . . . . . . . . . . . . . . . . . . . . . . . . Robot Schematics Acquired 8 | . . . . . . . . . 4 . . . . . 4 . . . . . . . . . . . . . . Robots Built . | . . . . . . . . . . . . . . . . . . . . . . . . . . . . . . Authchips . | . . . . . . . . . . . . . . . . . . . . . . . . . . . . . . Time . | . . . . . . . . . . . . . . . . . . . . . . . . . . . . . . Total Robot Build Rating . | . . . . . . . . . . . . . . . . . . . . . . . . . . . . . . Part Schematics Acquired 35 | . . . . . 2 4 . . 15 . . . . . 9 . . . . 4 . 1 . . . . . . . Parts Built 1 | . . . . . . 1 . . . . . . . . . . . . . . . . . . . . . . . Authchips . | . . . . . . . . . . . . . . . . . . . . . . . . . . . . . . Time 51 | . . . . . . 51 . . . . . . . . . . . . . . . . . . . . . . . Total Part Build Rating 1 | . . . . . . 1 . . . . . . . . . . . . . . . . . . . . . . . Parts Repaired 5 | . . . . . 1 2 . . . . . 1 . . . . . . . . . 1 . . . . . . . Time 223 | . . . . . 44 79 . . . . . 50 . . . . . . . . . 50 . . . . . . . Parts Recycled . | . . . . . . . . . . . . . . . . . . . . . . . . . . . . . . Recycled Matter . | . . . . . . . . . . . . . . . . . . . . . . . . . . . . . . Retrieved Matter . | . . . . . . . . . . . . . . . . . . . . . . . . . . . . . . Retrieved Components 12 | . . . . . 10 . . . . . . . . . . . . . . . . 2 . . . . . . . Parts Scanalyzed 2 | . . . . . 1 1 . . . . . . . . . . . . . . . . . . . . . . . Part Schematics Acquired 2 | . . . . . 1 1 . . . . . . . . . . . . . . . . . . . . . . . Parts Damaged . | . . . . . . . . . . . . . . . . . . . . . . . . . . . . . . Bothacking | -11 -10 -10 -10 -9 -8 -7 -7 -7 -7 -7 -6 -6 -6 -6 -6 -5 -5 -5 -5 -5 -4 -4 -4 -4 -4 -3 -3 -2 -1 ------------ Run | Scr Mat Min Exi Min Mat Fac Low Low Zio Dee Pro Fac Low Low Dat Pro Fac Upp Upp Zhi Pro Fac Upp Upp War Pro Res Res Acc Used RIF Installer . | . . . . . . . . . . . . . . . . . . . . . . . . . . . . . . Robots Hacked . | . . . . . . . . . . . . . . . . . . . . . . . . . . . . . . Non-combat . | . . . . . . . . . . . . . . . . . . . . . . . . . . . . . . Combat . | . . . . . . . . . . . . . . . . . . . . . . . . . . . . . . Robot Hacks Applied . | . . . . . . . . . . . . . . . . . . . . . . . . . . . . . . Relay Couplers Released . | . . . . . . . . . . . . . . . . . . . . . . . . . . . . . . Robots Rewired 4 | . . . . . . . . . . . . . . . . . . . . . . . . . 4 . . . . Allies Hacked . | . . . . . . . . . . . . . . . . . . . . . . . . . . . . . . Hacks Repelled . | . . . . . . . . . . . . . . . . . . . . . . . . . . . . . . Allies | -11 -10 -10 -10 -9 -8 -7 -7 -7 -7 -7 -6 -6 -6 -6 -6 -5 -5 -5 -5 -5 -4 -4 -4 -4 -4 -3 -3 -2 -1 -------- Run | Scr Mat Min Exi Min Mat Fac Low Low Zio Dee Pro Fac Low Low Dat Pro Fac Upp Upp Zhi Pro Fac Upp Upp War Pro Res Res Acc Total Allies 13 | . . 1 . 1 . 1 . . 5 . . . . . . 1 . . . . . . . . 4 . . . . Largest Group 5 | . . 1 . 1 1 1 . . 5 5 1 1 . . . 1 . . . . . . . . 4 1 1 . . Highest-Rated Group 277 | . . 31 . 31 31 26 . . 277 277 95 95 . . . 95 . . . . . . . . 222 56 56 . . Highest-Rated Ally 95 | . . 31 . 31 31 26 . . 95 95 95 95 . . . 95 . . . . . . . . 68 56 56 . . Total Orders 3 | . . . . . . 2 . . . . . . . . . . . . . . . . . . . . . 1 . STAY 2 | . . . . . . 2 . . . . . . . . . . . . . . . . . . . . . . . EXPLORE 1 | . . . . . . . . . . . . . . . . . . . . . . . . . . . . 1 . Ally Attacks 132 | . . 5 . 2 11 . . . . 54 3 23 . . . 20 . . . . . . . . 13 . 1 . . Total Damage 3822 | . . 81 . 20 187 . . . . 1239 141 736 . . . 863 . . . . . . . . 526 . 29 . . Kills 32 | . . 2 . 1 2 . . . . 11 2 5 . . . 5 . . . . . . . . 4 . . . . Allies Corrupted . | . . . . . . . . . . . . . . . . . . . . . . . . . . . . . . Allies Melted 1 | . . . . . . . . . . . . . . . . . . . . . . . . . . . . 1 . Intel | -11 -10 -10 -10 -9 -8 -7 -7 -7 -7 -7 -6 -6 -6 -6 -6 -5 -5 -5 -5 -5 -4 -4 -4 -4 -4 -3 -3 -2 -1 ------- Run | Scr Mat Min Exi Min Mat Fac Low Low Zio Dee Pro Fac Low Low Dat Pro Fac Upp Upp Zhi Pro Fac Upp Upp War Pro Res Res Acc Robot Analysis Total 8 | . 2 . . . 1 . . . . . . . . . . . . . . 4 . 1 . . . . . . . Derelict Logs Recovered 19 | . . 1 . 2 . . 2 1 3 . 1 . 1 3 . 1 . . 2 . 1 . 1 . . . . . . Drone Launches 3 | . . . . . . . . . . . . . . . . . . . . . . . . . . . . 3 . Drone Recoveries 2 | . . . . . . . . . . . . . . . . . . . . . . . . . . . . 2 . Exploration | -11 -10 -10 -10 -9 -8 -7 -7 -7 -7 -7 -6 -6 -6 -6 -6 -5 -5 -5 -5 -5 -4 -4 -4 -4 -4 -3 -3 -2 -1 ------------- Run | Scr Mat Min Exi Min Mat Fac Low Low Zio Dee Pro Fac Low Low Dat Pro Fac Upp Upp Zhi Pro Fac Upp Upp War Pro Res Res Acc Turns Passed 30454 | 1 1460 356 867 848 2958 2078 1134 576 2656 1211 436 1419 646 993 137 827 476 467 489 298 508 1543 1559 594 1103 305 2444 1215 850 Spaces Moved 14769 | 1 668 166 454 395 1410 1279 718 315 1624 686 215 636 249 460 84 378 205 199 234 160 245 538 613 248 557 148 832 491 561 Core 120 | . . . . . . . . . . . . . . . . . . . . . . . . . . . . 85 35 Treads 11436 | . 406 . . . 932 411 718 315 1624 686 215 636 249 460 84 378 205 199 234 160 245 538 613 248 557 148 832 327 16 Legs 1756 | 1 262 166 454 395 478 . . . . . . . . . . . . . . . . . . . . . . . . Wheels 1457 | . . . . . . 868 . . . . . . . . . . . . . . . . . . . . . 79 510 Hover . | . . . . . . . . . . . . . . . . . . . . . . . . . . . . . . Flight . | . . . . . . . . . . . . . . . . . . . . . . . . . . . . . . Fastest Speed 50 | 120 120 190 190 190 120 115 151 151 155 161 161 161 165 165 165 162 162 162 162 162 162 157 161 161 161 161 162 50 50 Average Speed 158 | 120 174 190 190 190 167 131 151 153 158 161 161 164 165 165 165 164 162 162 162 162 162 161 161 161 161 161 163 138 96 Slowest Speed 330 | 120 240 190 190 190 330 163 151 155 161 161 161 165 165 165 165 165 162 162 162 246 162 240 161 161 243 161 168 250 250 Overloaded Moves . | . . . . . . . . . . . . . . . . . . . . . . . . . . . . . . Propulsion Burnouts . | . . . . . . . . . . . . . . . . . . . . . . . . . . . . . . Robots Hopped . | . . . . . . . . . . . . . . . . . . . . . . . . . . . . . . Cave-ins Triggered 1 | . . . . . . . . . . . . . . . . . . . . . . . . . . . . 1 . Teleports 1 | . . . . . . . . . . . . . . . . . . . . . . . . . . . . 1 . Exploration Rate (%) 52 | 2 95 47 71 85 95 37 79 51 84 65 47 23 51 67 75 74 7 48 58 61 51 15 80 42 77 43 27 19 11 Regions Visited 29 Branch Regions 20 Pre-discovered Areas 12 | . 2 . 1 1 . . . . 1 . . . . 1 1 1 . . 1 3 . . . . . . . . . Known Exits Taken 8 | . . . . . . 1 . . . . 1 1 . . . 1 . . . . 1 1 1 1 . . . . . Unknown Exits Taken 21 | 1 1 1 1 1 1 . 1 1 1 1 . . 1 1 1 . 1 1 1 1 . . . . 1 1 1 1 . Scrap Searched 32 | . . . . 2 . . 2 4 2 . 3 . 3 3 . 1 . 1 1 . 2 . 3 3 . 2 . . . Spaces Dug 183 | . . . . . 7 . . 5 . . . 6 3 3 . 4 22 1 . . . 8 18 6 3 . 38 59 . Terrain Destroyed 1441 | . 13 . . 51 138 14 14 32 1 60 . 49 3 21 . 5 22 37 65 . 64 174 18 10 109 . 175 343 23 Melee 36 | . . . . . . . . . . . . 5 1 1 . . 6 1 . . . 5 . . 3 . 13 1 . Projectile 137 | . . . . . . . . 6 1 1 . 1 2 3 . 5 . 1 1 . 1 21 18 10 1 . 36 28 1 AOE 1268 | . 13 . . 51 138 14 14 26 . 59 . 43 . 17 . . 16 35 64 . 63 148 . . 105 . 126 314 22 Terrain Rammed . | . . . . . . . . . . . . . . . . . . . . . . . . . . . . . . Walls Destroyed . | . . . . . . . . . . . . . . . . . . . . . . . . . . . . . . Machines Disabled . | . . . . . . . . . . . . . . . . . . . . . . . . . . . . . . Actions | -11 -10 -10 -10 -9 -8 -7 -7 -7 -7 -7 -6 -6 -6 -6 -6 -5 -5 -5 -5 -5 -4 -4 -4 -4 -4 -3 -3 -2 -1 --------- Run | Scr Mat Min Exi Min Mat Fac Low Low Zio Dee Pro Fac Low Low Dat Pro Fac Upp Upp Zhi Pro Fac Upp Upp War Pro Res Res Acc Total 20187 | 2 820 185 460 446 1832 1599 756 375 1698 778 294 936 452 649 83 543 306 326 329 188 334 1004 1131 419 733 211 1634 883 781 Wait 3360 | . 24 7 . 11 194 206 20 24 39 58 61 218 166 141 . 117 68 104 74 . 62 262 434 144 20 53 528 229 96 Move 14738 | . 667 165 453 394 1409 1278 717 314 1623 685 214 635 248 459 83 377 204 198 233 159 244 537 612 247 556 147 831 489 560 Hop . | . . . . . . . . . . . . . . . . . . . . . . . . . . . . . . Pick Up 140 | . 22 . 1 1 24 15 1 1 5 2 1 4 1 1 . 2 . . . 3 . 18 4 1 8 2 9 8 6 Fast Attach 127 | . 2 1 . 1 12 5 . . 5 7 1 2 2 . . 1 1 . . 6 . 8 . . 14 . 18 16 25 Attach 64 | . 5 . . . 5 3 . 1 . 1 . 2 1 . . . 1 . . 1 1 13 1 . 2 . 4 14 9 Detach 6 | . . . . . . . . . . . . . . . . . . . . . . 3 . . . . . . 3 Swap 517 | . 7 . 2 7 32 20 10 5 12 6 11 35 21 25 . 17 15 19 17 4 17 48 39 15 11 8 79 24 11 Drop 222 | 2 12 1 4 4 39 18 2 2 10 8 3 8 1 1 . 3 . . . 9 . 17 4 1 22 1 21 14 15 Fire 829 | . 81 11 . 27 117 54 5 28 3 10 3 24 11 18 . 26 10 4 5 . 10 65 37 11 15 . 120 87 47 Melee 102 | . . . . . . . 1 . 1 1 . 7 1 4 . . 7 1 . 6 . 32 . . 8 . 24 1 8 Ram 1 | . . . . . . . . . . . . . . . . . . . . . . . . . . . . . 1 Kick 1 | . . . . 1 . . . . . . . . . . . . . . . . . . . . . . . . . Crush 2 | . . . . . . . . . . . . 1 . . . . . . . . . 1 . . . . . . . Escape Stasis 1 | . . . . . . . . . . . . . . . . . . . . . . . . . . . . 1 . Rewire 77 | . . . . . . . . . . . . . . . . . . . . . . . . . 77 . . . . Trap . | . . . . . . . . . . . . . . . . . . . . . . . . . . . . . . Miscellaneous . | . . . . . . . . . . . . . . . . . . . . . . . . . . . . . . Route ------- -11/Scrapyard -10/Materials (discovered 5 exits: [*Mat x3] / [*Min x2]) -10/Mines (discovered 2 exits: [*Mat] / *Exi) -10/Exiles -9/Mines -8/Materials (discovered 3 exits: *Fac x3) -7/Factory (discovered 7 exits: Fac x4 / Sto / *Low x2) -7/Lower Caves -7/Lower Caves (discovered 2 exits: *Fac / *Zio) -7/Zion (discovered 2 exits: [*Dee] / [Pro]) -7/Deep Caves -6/Proximity Caves -6/Factory (discovered 3 exits: *Fac / *Low x2) -6/Lower Caves -6/Lower Caves (discovered 2 exits: Fac / *Dat) -6/Data Miner -5/Proximity Caves -5/Factory (discovered 3 exits: Fac x2 / [*Upp]) -5/Upper Caves -5/Upper Caves -5/Zhirov -4/Proximity Caves -4/Factory -4/Upper Caves -4/Upper Caves (discovered 2 exits: *Res / *War) -4/Warlord -3/Proximity Caves -3/Research (discovered 2 exits: *Res / *Tes) -2/Research -1/Access To Epsilon Eridani History --------- Turn | Location | Event 2 | -11/Scrapyard | Discovered new exit (range 0) 2 | -11/Scrapyard | Entered Materials 64 | -10/Materials | Met 8R-AWN 95 | -10/Materials | Discovered new exit (range 9) 214 | -10/Materials | Discovered new exit (range 6) 302 | -10/Materials | Build established: Mutant 405 | -10/Materials | Discovered new exit (range 9) 575 | -10/Materials | Discovered new exit (range 15) 913 | -10/Materials | Discovered new exit (range 10) 1462 | -10/Materials | Entered Mines 1464 | -10/Mines | Followed 8R-AWN into the Mines 1465 | -10/Mines | Received a Mining Laser from a helpful Derelict 1579 | -10/Mines | Learned 4 Materials zone layouts 1759 | -10/Mines | Discovered new exit (range 11) 1810 | -10/Mines | Discovered new exit (range 5) 1818 | -10/Mines | Entered Exiles 1868 | -10/Exiles | Welcomed by 8R-AWN 1894 | -10/Exiles | Met EX-HEX 1974 | -10/Exiles | Met EX-DEC 1986 | -10/Exiles | Learned location of Zion (-7) 2018 | -10/Exiles | Met EX-BIN 2045 | -10/Exiles | Aligned with FarCom system 2046 | -10/Exiles | Given EX-Vault access code 2092 | -10/Exiles | Opened EX-Vault 2138 | -10/Exiles | Warned to stay clear of 0b10 Research branches 2500 | -10/Exiles | Found XL Autogun Array 2662 | -10/Exiles | Discovered new exit (range 14) 2685 | -10/Exiles | Left Exiles lab with XL Autogun Array 2685 | -10/Exiles | Entered Mines 2779 | -9/Mines | Learned Materials interactive machine intel 2817 | -9/Mines | Joined a pair of Derelicts in attacking an 0b10 outpost 3100 | -9/Mines | Learned Materials emergency access door positions 3174 | -9/Mines | Build established: Scavenger-Mutant 3175 | -9/Mines | Escorted by a lone wolf Derelict 3195 | -9/Mines | Learned location of Storage (-7) 3512 | -9/Mines | Discovered new exit (range 13) 3533 | -9/Mines | Entered Materials 3533 | -8/Materials | Accompanied by 1 ally 3533 | -8/Materials | Evolved 4 slots: Propulsion x1, Utility x2, Weapon x1 3536 | -8/Materials | Loaded intel: 19 interactive machine locations 3682 | -8/Materials | Central database locked down 4008 | -8/Materials | Discovered new exit (range 20) 4112 | -8/Materials | Build established: Skirmisher 4412 | -8/Materials | Discovered new exit (range 13) 4645 | -8/Materials | Build established: Gunner 5048 | -8/Materials | Build established: Scavenger-Skirmisher 5183 | -8/Materials | Discovered new exit (range 16) 5933 | -8/Materials | First assault squad dispatched 6153 | -8/Materials | Build established: Skirmisher 6186 | -8/Materials | Repaired Hrd. Heavy Armor Plating 6491 | -8/Materials | Entered Factory 6491 | -7/Factory | Evolved 2 slots: Propulsion x1, Utility x1 7056 | -7/Factory | Repaired Enh. Autogun 7331 | -7/Factory | Fabricated Hcp. Storage Unit? 8348 | -7/Factory | Discovered new exit (range 10) 8458 | -7/Factory | Identified exit to Storage 8458 | -7/Factory | Identified exit to Lower Caves 8491 | -7/Factory | Identified exit to Factory 8551 | -7/Factory | Repaired Hrd. Medium Armor Plating 8569 | -7/Factory | Entered Lower Caves 8607 | -7/Lower Caves | Learned Factory emergency access door positions 8686 | -7/Lower Caves | Attracted the attention of an 0b10 checkpoint 8875 | -7/Lower Caves | Learned Factory emergency access door positions 8884 | -7/Lower Caves | Discovered new exit (range 10) 9467 | -7/Lower Caves | Acquired the password to a Derelict Tinkerer's latest research 9703 | -7/Lower Caves | Entered another Lower Caves area 9708 | -7/Lower Caves | Discovered exit to Factory (range 13) 9762 | -7/Lower Caves | Build established: Mutant 9842 | -7/Lower Caves | Learned Factory trap positions 9875 | -7/Lower Caves | Encountered a Warlord checkpoint 10223 | -7/Lower Caves | Discovered new exit (range 13) 10230 | -7/Lower Caves | Enh. Autogun stolen by Master Thief 10279 | -7/Lower Caves | Entered Zion 10358 | -7/Zion | Discovered new exit (range 14) 10400 | -7/Zion | System corruption cleaned by Quarantine Array 10555 | -7/Zion | Found Prototype Special Weapon 10643 | -7/Zion | Given the Hacking Drone Bay 10756 | -7/Zion | Given A8's code to call for help 10758 | -7/Zion | Learned location of 1 exit from Proximity Caves 10793 | -7/Zion | Build established: Skirmisher 10913 | -7/Zion | Learned Factory terminal intel 11107 | -7/Zion | Gained Derelict followers 11972 | -7/Zion | Visited the Megawrench Repair Shop 12176 | -7/Zion | Megawrench repaired 10 parts 12409 | -7/Zion | Found Prototype Special Weapon 12413 | -7/Zion | Found Prototype Special Weapon 12474 | -7/Zion | Found Prototype Device 12479 | -7/Zion | Identified Mobile Refinery Mk. CCLXVII 12747 | -7/Zion | Enhanced Grunt warped into view, answering call for help 12749 | -7/Zion | Enhanced Grunt warped into view, answering call for help 12770 | -7/Zion | Discovered new exit (range 4) 12770 | -7/Zion | Saw the warning signs outside the Deep Caves entrance 12862 | -7/Zion | Found CR-A16's Pointy Stick 12935 | -7/Zion | Entered Deep Caves 12935 | -7/Deep Caves | Accompanied by 5 allies 13132 | -7/Deep Caves | Identified RU-N14's Throwing Claymores (x3) 13162 | -7/Deep Caves | Attacked by Z-Imprinter 13173 | -7/Deep Caves | Allies destroyed Z-Imprinter 13240 | -7/Deep Caves | Z-Facility disabled 13268 | -7/Deep Caves | Build established: Mutant 13357 | -7/Deep Caves | Found Prototype Protection 13357 | -7/Deep Caves | Identified Zio. Weapon Casing 13869 | -7/Deep Caves | Found Unknown Processor 13869 | -7/Deep Caves | Identified Surveybot 24 Chip 13894 | -7/Deep Caves | Found Surveybot 24 Scanner 14135 | -7/Deep Caves | Discovered new exit (range 6) 14146 | -7/Deep Caves | Entered Proximity Caves 14146 | -6/Proximity Caves | Accompanied by 2 allies 14448 | -6/Proximity Caves | Learned Factory machine intel 14550 | -6/Proximity Caves | Build established: Scavenger-Tank 14582 | -6/Proximity Caves | Entered Factory 14582 | -6/Factory | Accompanied by 1 ally 14582 | -6/Factory | Evolved 2 slots: Utility x2 14583 | -6/Factory | Loaded intel: 92 trap records 14585 | -6/Factory | Loaded intel: 277 machine locations 14586 | -6/Factory | Loaded intel: 26 terminal locations 14825 | -6/Factory | Discovered new exit (range 10) 15177 | -6/Factory | Repaired Lyr. Medium Armor Plating 15609 | -6/Factory | Identified exit to Lower Caves 15982 | -6/Factory | First assault squad dispatched 16001 | -6/Factory | Entered Lower Caves 16002 | -6/Lower Caves | Encountered a Warlord checkpoint 16095 | -6/Lower Caves | Found Alien Artifact 16095 | -6/Lower Caves | Identified Core Expander 16095 | -6/Lower Caves | Installed Core Expander, added new Utility slot 16489 | -6/Lower Caves | Learned 4 Factory zone layouts 16610 | -6/Lower Caves | Discovered new exit (range 9) 16647 | -6/Lower Caves | Entered another Lower Caves area 16752 | -6/Lower Caves | Build established: Scavenger-Gunner 16971 | -6/Lower Caves | Encountered a Warlord checkpoint 17383 | -6/Lower Caves | Identified exit to Factory 17387 | -6/Lower Caves | Learned Factory security intel 17554 | -6/Lower Caves | Discovered new exit (range 10) 17640 | -6/Lower Caves | Entered Data Miner 17640 | -6/Data Miner | Discovered new exit (range 6) 17662 | -6/Data Miner | Met Data Miner 17706 | -6/Data Miner | Learned location of Section 7 (-2) 17706 | -6/Data Miner | Acquired the access code to Warlord's prototype stash 17731 | -6/Data Miner | Received God Mode back door access code from Data Miner 17777 | -6/Data Miner | Entered Proximity Caves 17860 | -5/Proximity Caves | Escorted by Enhanced Grunt 18244 | -5/Proximity Caves | Build established: Derelict-Mutant 18326 | -5/Proximity Caves | Attracted the attention of an 0b10 checkpoint 18431 | -5/Proximity Caves | Discovered exit to Factory (range 21) 18604 | -5/Proximity Caves | Entered Factory 18604 | -5/Factory | Evolved 2 slots: Power x1, Utility x1 18605 | -5/Factory | Identified exit to Factory 18721 | -5/Factory | Discovered new exit (range 14) 19080 | -5/Factory | Entered Upper Caves 19265 | -5/Upper Caves | Encountered a Warlord checkpoint 19495 | -5/Upper Caves | Discovered new exit (range 8) 19547 | -5/Upper Caves | Entered another Upper Caves area 19548 | -5/Upper Caves | Encountered a Warlord checkpoint 19750 | -5/Upper Caves | Build established: Derelict-Tank 19837 | -5/Upper Caves | Learned Factory interactive machine intel 19990 | -5/Upper Caves | Discovered new exit (range 20) 20036 | -5/Upper Caves | Entered Zhirov 20036 | -5/Zhirov | Discovered new exit (range 3) 20066 | -5/Zhirov | Met Zhirov 20095 | -5/Zhirov | Learned location of Testing (-3) 20095 | -5/Zhirov | Learned location of Command (-1) 20111 | -5/Zhirov | Zhirov requested help retrieving the SGEMP Prototype 20137 | -5/Zhirov | Found Alien Artifact 20137 | -5/Zhirov | Identified Integrated Dissipator 20137 | -5/Zhirov | Installed Integrated Dissipator, increased core heat dissipation (+20) 20163 | -5/Zhirov | Revealed the true nature of CR-A16's Pointy Stick 20273 | -5/Zhirov | Found Alien Artifact 20334 | -5/Zhirov | Entered Proximity Caves 20596 | -4/Proximity Caves | Learned Research security intel 20752 | -4/Proximity Caves | Build established: Scavenger-Tank 20794 | -4/Proximity Caves | Discovered exit to Factory (range 5) 20842 | -4/Proximity Caves | Entered Factory 20842 | -4/Factory | Evolved 2 slots: Propulsion x1, Weapon x1 20843 | -4/Factory | Loaded intel: 53 interactive machine locations 21520 | -4/Factory | System corruption reached 10% 21680 | -4/Factory | Cargo convoy interrupted 21680 | -4/Factory | Spotted Striker 21693 | -4/Factory | Destroyed Striker 21728 | -4/Factory | Destroyed 13 combat bots 21876 | -4/Factory | First assault squad dispatched 22037 | -4/Factory | Discovered new exit (range 17) 22113 | -4/Factory | Repaired Imp. Heavy Armor Plating 22319 | -4/Factory | Identified exit to Upper Caves 22385 | -4/Factory | Entered Upper Caves 22688 | -4/Upper Caves | Build established: Scavenger-Skirmisher 23102 | -4/Upper Caves | Build established: Scavenger-Mutant 23820 | -4/Upper Caves | Discovered new exit (range 16) 23873 | -4/Upper Caves | Learned Research emergency access door positions 23942 | -4/Upper Caves | Identified exit to Upper Caves 23944 | -4/Upper Caves | Entered another Upper Caves area 23947 | -4/Upper Caves | Encountered a Warlord checkpoint 23986 | -4/Upper Caves | Discovered new exit (range 8) 24477 | -4/Upper Caves | Discovered new exit (range 23) 24535 | -4/Upper Caves | Identified exit to Warlord 24538 | -4/Upper Caves | Entered Warlord 24594 | -4/Warlord | System corruption cleaned by Quarantine Array 24784 | -4/Warlord | Found Prototype Special Weapon 24787 | -4/Warlord | Found Prototype Special Weapon 24790 | -4/Warlord | Found Prototype Special Weapon 24793 | -4/Warlord | Found Prototype Special Weapon 24797 | -4/Warlord | Found Prototype Special Weapon 24800 | -4/Warlord | Found Prototype Special Weapon 24875 | -4/Warlord | Identified RU-N14's Throwing Claymores v3 (x6) 24938 | -4/Warlord | Build established: Scavenger-Assassin 25153 | -4/Warlord | Visited the Vortex Lab 25166 | -4/Warlord | Warlord's base attacked by MAIN.C 25167 | -4/Warlord | Found Prototype Energy Cannon 25167 | -4/Warlord | Identified Vortex Driver 25313 | -4/Warlord | Met Warlord 25329 | -4/Warlord | Opened Warlord's prototype stash 25336 | -4/Warlord | Found Prototype Reactor 25336 | -4/Warlord | Identified Vortex Chain Reactor 25343 | -4/Warlord | Found Prototype Device 25343 | -4/Warlord | Identified Exp. Cloaking Device 25352 | -4/Warlord | Found Prototype Device 25352 | -4/Warlord | Identified System Purifier 25355 | -4/Warlord | Found Prototype Processor 25355 | -4/Warlord | Identified Exp. Armor Integrity Analyzer 25492 | -4/Warlord | Spotted Striker 25508 | -4/Warlord | Destroyed Striker 25513 | -4/Warlord | Spotted Executioner 25516 | -4/Warlord | Warlord forces counterattacked 25516 | -4/Warlord | Spotted Executioner 25526 | -4/Warlord | Destroyed Executioner 25549 | -4/Warlord | Destroyed 14 combat bots 25567 | -4/Warlord | Spotted Striker 25573 | -4/Warlord | Destroyed Striker 25603 | -4/Warlord | Destroyed 10 combat bots 25616 | -4/Warlord | Discovered new exit (range 12) 25641 | -4/Warlord | Entered Proximity Caves 25641 | -3/Proximity Caves | Accompanied by 1 ally 25772 | -3/Proximity Caves | Build established: Scavenger-Mutant 25855 | -3/Proximity Caves | Discovered new exit (range 17) 25946 | -3/Proximity Caves | Entered Research 25946 | -3/Research | Accompanied by 1 ally 25946 | -3/Research | Evolved 2 slots: Propulsion x1, Utility x1 25952 | -3/Research | Discovered new exit (range 23) 25996 | -3/Research | Spotted B-86 Titan 26172 | -3/Research | Identified exit to Testing 26305 | -3/Research | Found Antimissile System 27092 | -3/Research | Found Gamma Bomb Array 27655 | -3/Research | System corruption reached 10% 27696 | -3/Research | First assault squad dispatched 28005 | -3/Research | Incoming assault squad redirected 28216 | -3/Research | Incoming assault squad redirected 28220 | -3/Research | Discovered new exit (range 21) 28390 | -3/Research | Entered another Research area 28390 | -2/Research | Warlord forces began assault on 0b10 28390 | -2/Research | Evolved 2 slots: Power x1, Utility x1 28500 | -2/Research | Research machine network offline 28528 | -2/Research | Discovered new exit (range 13) 28882 | -2/Research | Borebot progress halted 28999 | -2/Research | Borebot progress halted 29048 | -2/Research | Crushed by falling debris 29060 | -2/Research | Spotted Striker 29063 | -2/Research | Destroyed Striker 29109 | -2/Research | Destroyed 11 combat bots 29109 | -2/Research | Spotted Striker 29110 | -2/Research | Spotted Executioner 29194 | -2/Research | Destroyed 3M-4GK(H) 29198 | -2/Research | Spotted Striker 29216 | -2/Research | Destroyed Striker 29219 | -2/Research | Spotted Executioner 29242 | -2/Research | Destroyed Executioner 29244 | -2/Research | Borebot progress halted 29254 | -2/Research | Spotted Executioner 29263 | -2/Research | Destroyed 7 combat bots 29266 | -2/Research | Spotted Striker 29267 | -2/Research | Destroyed Executioner 29267 | -2/Research | Spotted Striker 29297 | -2/Research | Spotted Executioner 29303 | -2/Research | Build established: Generator-Tank 29312 | -2/Research | Spotted Striker 29326 | -2/Research | Destroyed Striker 29355 | -2/Research | Spotted Executioner 29357 | -2/Research | Spotted Striker 29368 | -2/Research | Destroyed Striker 29374 | -2/Research | Destroyed Executioner 29376 | -2/Research | Destroyed Executioner 29388 | -2/Research | Spotted Executioner 29389 | -2/Research | Found Prototype Processor 29389 | -2/Research | Identified Exp. Targeting Computer 29397 | -2/Research | Spotted Striker 29399 | -2/Research | Spotted Striker 29401 | -2/Research | Identified Transdimensional Reconstructor 29401 | -2/Research | Warped through subspace 29424 | -2/Research | Lost 3 parts (1n2u) 29433 | -2/Research | Spotted Striker 29438 | -2/Research | Destroyed Executioner 29438 | -2/Research | Spotted Executioner 29440 | -2/Research | Spotted Striker 29446 | -2/Research | Destroyed Striker 29446 | -2/Research | High security lockdown imminent 29446 | -2/Research | Destroyed Executioner 29450 | -2/Research | Destroyed Striker 29454 | -2/Research | Destroyed Striker 29469 | -2/Research | Destroyed Striker 29490 | -2/Research | Destroyed 15 combat bots 29494 | -2/Research | Core integrity fell below 50% 29501 | -2/Research | Lost 12 parts (3p2n3u4w) 29526 | -2/Research | High security lockdown engaged 29541 | -2/Research | Spotted Executioner 29544 | -2/Research | Spotted Executioner 29569 | -2/Research | Spotted Striker 29605 | -2/Research | Entered Access 29605 | -1/Access | Evolved 2 slots: Propulsion x2 29821 | -1/Access | Discovered new exit (range 16) 29855 | -1/Access | First assault squad dispatched 29927 | -1/Access | Incoming assault squad redirected 29993 | -1/Access | Lost 5 parts (1p1u3w) 30017 | -1/Access | System corruption reached 10% 30073 | -1/Access | Lost 5 parts (2p2n1w) 30328 | -1/Access | Spotted B-99 Colossus 30367 | -1/Access | Spotted B-99 Colossus 30375 | -1/Access | Destroyed B-99 Colossus 30378 | -1/Access | Incoming assault squad redirected 30400 | -1/Access | Destroyed B-99 Colossus 30429 | -1/Access | Lost 5 parts (4n1u) 30455 | *** | Escaped! Last Messages --------------- 30395_ Penetrated by Slug. 30395_ Slug penetrates Reinforced Barrier. 30396_ B-99 Colossus activates siege mode. 30398_ Knocked back. 30398_ Penetrated by Slug. 30398_ Arm. Medium Treads destroyed. 30398_ Penetrated by Slug. 30398_ Critical hit (Destroy). 30398_ Arm. Medium Treads destroyed. 30398_ Slug penetrates Reinforced Barrier. 30400_ B-99 Colossus suddenly blasts apart at the seams. 30400_ B-99 Colossus destroyed. 30405_ Acquired Unknown Reactor. 30405_ Identified Rnf. Quantum Reactor. 30410_ Acquired Unknown Treads. 30410_ Identified Arm. Heavy Treads. 30413_ Acquired Lyr. Heavy Armor Plating. 30422_ Sealed Heavy Doors breached. 30444_ Main Access Shell breached. 30452_ System corrupted: Matter fused (-5). Map ----- +----------------------------------------------------+ | ###?###### ## #####""" # # # | | ########## ## ##### """ + ^+ # | | # =#### ## # #### " # #? # | | # !### [ # #### # # # | | ?+ =%%!%=!=" # ### # # ? # | | # [ ###!! # ##### [ # # # | | # = [####### ##########+### ########## | | #### ######## ########## ### ########?# | | #### ######## ########## ### ########## | | ##### ############# ############/### #### # ## | | ##### ###################### " # %# | | ##### #########?############ """ # # ] | | ?####!###################### """ # | | #####*###################### " | | ##[#?###?################ [ # | | +[=#?################## # [ | | ##=###################### =[= [ =% | | ##=###################### =[%[# | | " ##[##########?####################=%=# ## | | ##[########?##################### #[ ### ## | | ## ########################"####### ########## | | ? ## # ## !! "" " " #####???## | | ## ## " [!% ! " ########## | | ####" ##"" !]! """" """""" " #####?#### | | ] """" " " " ###?##?#? | | % %"""" "@ " ?" = ###?###?## | | % """" " "" "??" !%*#?#?#?#??# | | %[ """" " " " / ########## | | ###"###### %%!%! """" """""" ?" =## | | ? ?????# [] """" ? ? """" "" [*##] !! | | ??????#%% """" ?? """"T"""%=## !! | | ?????#"########??###?#####?"####### %## ! | | ??????##???????####??####?##?#######=!## | | ???????????????##?#??#?#####?##?####!%*## | | ???????????????#?##??###?#?##?##?###=%="" | | ??????????????????#??##?#???###?#### " [" | | ?????????????????######??###?#?????# [="" | | ?????????????????####??#?##?#??#?### = #+###### | | ??????????????????###?#?###?#???##?# ### | | ??????????????????####??##?#??####?## ! # | | ???????????????????#?#??#?##?###??#?######### # | | ???????????????????###?#?#???##?#??#?###???## # | | ???????????????????? ??####?#???#?#######?## # | | ?????????????????????? ??###????###?#?###?### + | | ????????????????????????###?###?#####??#?#??# ### | | ????????????????????????######??######??##### | | ???????????????????????? " ??? " ?##??#### | | ????????????????????????? ??? ? "?"??#?#?#?####### | | ??????????????????????????"" ?""? #?######?? | | ???????????????????????????? "?????######?# ? | +----------------------------------------------------+ Best States ------------- Heat Dissipation 100 Coolant Potential 100 Energy Generation 65 Energy Capacity 1300 Matter Stores 500 Matter Capacity 500 Sight Range 22 Robot Scan Range 16 Terrain Scan Range 24 Terrain Scan Density 2010 Jamming Range 16 Armor Coverage 1200 Resistance: KI 30 Power Shielding 90 Weapon Shielding 100 Point Defense Rating 240 Weapon Cycling 20 Phase Shifting 15 Evasion (%) 57 Targeting Accuracy 12 Target Analysis 8 Armor Integrity Analysis 50 Recoil Reduction 6 Kinecelleration 40 Stasis Canceling 2 Defensive Hacking 10 Item Schematics ----------------- Hcp. Storage Unit | -8/Materials | Hacked Med. Armor Plating | -8/Materials | Scanalyzed Hrd. Heavy Armor Plating | -7/Factory | Scanalyzed Imp. Cooling System | -7/Factory | Hacked Imp. Launcher Guidance Computer | -7/Factory | Hacked Imp. Heavy Armor Plating | -7/Factory | Hacked Coil Gun | -7/Zion | Archive Mak. Shrapnel Gun | -7/Zion | Archive System Guard | -7/Zion | Archive Imp. Titanium Leg | -7/Zion | Archive Matter Compressor | -7/Zion | Archive Imp. Deuterium Engine | -7/Zion | Archive Hvy. Treads | -7/Zion | Archive Imp. Maneuvering Thrusters | -7/Zion | Archive Lightning Gun | -7/Zion | Archive Mak. Laser | -7/Zion | Archive Drone Bay | -7/Zion | Archive Hvy. Riot Gun | -7/Zion | Archive Imp. Trap Scanner | -7/Zion | Archive Energy Filter | -7/Zion | Archive Antigrav System | -7/Zion | Archive Combat Drone Bay | -6/Data Miner | Free Lgt. Regenerative Plating | -6/Data Miner | Free Enh. Armored Leg | -6/Data Miner | Free Imp. Matter Compressor | -6/Data Miner | Free Enh. Force Rifle | -6/Data Miner | Free Adv. Medium Treads | -6/Data Miner | Free Lrn. Terrain Scanner | -6/Data Miner | Free Hvy. Gauss Cannon | -6/Data Miner | Free Hvy. Phase Cannon | -6/Data Miner | Free Assault Drone Bay | -5/Zhirov | Free Exp. Heat Sink | -5/Zhirov | Free Exp. Optical Array | -5/Zhirov | Free Imp. Arc Thrower | -5/Zhirov | Free Hyp. Railgun | -4/Factory | Hacked Robot Schematics ------------------ H-55 Commando | -7/Zion | Archive Y-54 Guardian | -7/Zion | Archive B-48 Gladiator | -7/Zion | Archive C-57 Dissector | -7/Zion | Archive H-66 Slayer | -6/Data Miner | Free B-60 Warrior | -6/Data Miner | Free D-63 Destroyer | -6/Data Miner | Free A-15 Conveyor | -6/Data Miner | Free Fabricated ------------ Hcp. Storage Unit | x1 | -7/Factory Alien Tech Used ----------------- Core Expander Integrated Dissipator Transdimensional Reconstructor Achievements -------------- None Challenges ------------ None Game ------ Seed MetafieldCoreLoader Manual? 0 Play Time 04:31:10 Cumulative 421.7 hours Start 2021.10.28 @ 04:16:49 End 2021.10.30 @ 21:54:42 Sessions 19 Manual Loads 0 Difficulty Rogue Special Mode None Game No. 420 Rogue 420 Adventurer 0 Explorer 0 Win Type 0 Total 8 Types 7/0/0/1/0/0/0/0/0 Lore% 79 Gallery% 92 Achievement% 69 Wizard Run 0 Options --------- ASCII 0 Keyboard 0 Movement Mouse Keybinds 1 Fullscreen 2 Font 24/Smallcaps Map View 76x50 Tactical HUD 1 Map Filters NONE Filters NONE Steam 1 RUN: cd07729a-a9b1-4832-b456-698670a000cc